Cogmind - Beta 15 @@@ ROGUE MODE // 2025.05.26 @ 17:14:27 // Winter2022/Polymind Player: Figgis Result: Destroyed by L-41 Fighter with Axe Performance ------------- Evolutions (5) 2500 Regions Visited (16) 3200 Robots Destroyed (89) 445 Value Destroyed (2820) 2820 Prototype IDs (15) 300 Alien Tech Used (0) 0 Bonus (9061) 9061 TOTAL SCORE: 18296 Bonus ------- Polymind Skill 7970 Follower Combat Kills 91 Entered Garrisons 200 Registered with UFD 300 Met Optimus in HQ 500 Cogmind --------- Core Integrity 0/1000 Matter 0/0 Energy 98/100 System Corruption 0% Temperature Cool (0) Movement Core (50) Location -5/Factory Parts ------- > --- POWER (1) -------- (None) > --- PROPULSION (2) --- (None) > --- UTILITY (0) ------ (None) > --- WEAPON (1) ------- (None) > --- INVENTORY (0) ---- (None) Peak State ------------ > --- POWER ------------ Heavy Deuterium Engine > --- PROPULSION ------- Combat Antigrav System > --- UTILITY ---------- Advanced Launcher Guidance Computer Improved Target Analyzer Experimental Core Analyzer Improved Armor Integrity Analyzer EX Chip 1 EX Chip 1 EX Chip 1 EX Chip 1 EX Chip 1 EX Chip 1 EX Chip 1 EX Chip 1 EX Chip 1 EX Chip 1 EX Chip 2 EX Chip 2 EX Chip 2 EX Chip 2 EX Chip 2 EX Chip 2 EX Chip 2 EX Chip 2 > --- WEAPON ----------- AWS/EX-DEC > --- INVENTORY -------- Deploy-a-Sentry [Rating: 99] Favorites ----------- Power Light Nuclear Core Engine Heavy Deuterium Engine Power Core Light Nuclear Core Propulsion Light Treads Treads Light Treads Leg Aluminum Leg Hover Unit Combat Antigrav System Flight Unit VTOL Module Utility EX Chip 1 Device Heat Sink Processor Improved Target Analyzer Hackware EX Chip 1 Protection Light Armor Plating Weapon Particle Gun Energy Gun Particle Gun Ballistic Gun Heavy Assault Rifle Ballistic Cannon Battle Cannon Special Weapon Improved Remote Datajack Impact Weapon Heavy Mace Build | -11 -10 -10 -9 -9 -9 -8 -8 -8 -8 -8 -6 -6 -6 -5 -5 -5 ------- Run | Yrd Mat Min Mat Min Exi Min Mat Sto Rec Scr Fac Low Low Fac Gar Fac Slots Evolved . | . . . . . . . . . . . . . . . . . Power . | . . . . . . . . . . . . . . . . . Propulsion . | . . . . . . . . . . . . . . . . . Utility . | . . . . . . . . . . . . . . . . . Weapon . | . . . . . . . . . . . . . . . . . Parts Attached . | . . . . . . . . . . . . . . . . . Power . | . . . . . . . . . . . . . . . . . Engine . | . . . . . . . . . . . . . . . . . Core . | . . . . . . . . . . . . . . . . . Reactor . | . . . . . . . . . . . . . . . . . Propulsion . | . . . . . . . . . . . . . . . . . Treads . | . . . . . . . . . . . . . . . . . Leg . | . . . . . . . . . . . . . . . . . Wheel . | . . . . . . . . . . . . . . . . . Hover . | . . . . . . . . . . . . . . . . . Flight . | . . . . . . . . . . . . . . . . . Utility . | . . . . . . . . . . . . . . . . . Device . | . . . . . . . . . . . . . . . . . Storage . | . . . . . . . . . . . . . . . . . Processor . | . . . . . . . . . . . . . . . . . Hackware . | . . . . . . . . . . . . . . . . . Protection . | . . . . . . . . . . . . . . . . . Artifact . | . . . . . . . . . . . . . . . . . Weapon . | . . . . . . . . . . . . . . . . . Energy Gun . | . . . . . . . . . . . . . . . . . Energy Cannon . | . . . . . . . . . . . . . . . . . Ballistic Gun . | . . . . . . . . . . . . . . . . . Ballistic Cannon . | . . . . . . . . . . . . . . . . . Launcher . | . . . . . . . . . . . . . . . . . Special Weapon . | . . . . . . . . . . . . . . . . . Impact Weapon . | . . . . . . . . . . . . . . . . . Slashing Weapon . | . . . . . . . . . . . . . . . . . Piercing Weapon . | . . . . . . . . . . . . . . . . . Special Melee Weapon . | . . . . . . . . . . . . . . . . . Unidentified Prototypes . | . . . . . . . . . . . . . . . . . Parts Lost 48 | . . . 6 3 . . . . . 2 21 . 4 6 6 . Power 7 | . . . 2 . . . . . . . 3 . 1 1 . . Propulsion 5 | . . . . . . . . . . . . . 1 1 3 . Utility 21 | . . . 2 2 . . . . . 1 13 . 1 1 1 . Weapon 15 | . . . 2 1 . . . . . 1 5 . 1 3 2 . Highest Loss Streak 8 | . . . 4 2 . . . . . 1 8 . 2 6 4 . To Critical Strikes . | . . . . . . . . . . . . . . . . . Average Backups . | . . . . . . . . . . . . . . . . . Power . | . . . . . . . . . . . . . . . . . Propulsion . | . . . . . . . . . . . . . . . . . Utility . | . . . . . . . . . . . . . . . . . Weapon . | . . . . . . . . . . . . . . . . . Tool/Special . | . . . . . . . . . . . . . . . . . Unused Backups . | . . . . . . . . . . . . . . . . . Power . | . . . . . . . . . . . . . . . . . Propulsion . | . . . . . . . . . . . . . . . . . Utility . | . . . . . . . . . . . . . . . . . Weapon . | . . . . . . . . . . . . . . . . . Tool/Special . | . . . . . . . . . . . . . . . . . Average Slot Usage (%) 91 | . 87 100 94 97 48 96 96 96 96 95 68 100 91 97 71 . Engine 5 | . 1 . 7 9 1 3 3 3 3 3 . 11 12 9 6 . Core 5 | . 16 20 5 . . . . . . . 2 2 . 1 9 . Treads 8 | . . . 18 18 . . . . . . . 23 20 18 7 . Leg 9 | . 35 40 10 . . . . . . . . . . 6 12 . Hover 3 | . . . . 12 1 3 3 3 3 2 2 . . . 4 . Device 13 | . 17 20 22 16 . . . . . . . 23 20 21 11 . Processor 5 | . . . . . 7 15 15 15 15 14 11 11 10 5 2 . Hackware 18 | . . . . . 34 69 69 69 69 66 41 . . . . . Protection 2 | . . . 7 8 . . . . . . . . 2 8 2 . Energy Gun 8 | . 17 20 12 9 1 3 3 3 3 3 4 . 2 9 4 . Ballistic Gun 6 | . . . 8 21 . . . . . . . 13 12 15 . . Ballistic Cannon 1 | . . . . . . . . . . . . 11 10 . . . Peak Build Rating 99 | . 10 10 11 11 99 99 99 99 99 99 77 20 23 32 46 . Average Rating 34 | . 8 10 10 9 47 99 99 99 99 97 63 19 19 24 19 . On Entrance 39 | . . 10 10 11 . 99 99 99 99 99 77 9 20 23 16 . Naked Turns 200 | . 92 . 2 2 46 . . . . 1 2 1 . 1 37 16 Heaviest Build 31 | . 9 9 18 18 21 21 21 21 21 21 12 18 23 23 31 . Greatest Support 46 | 3 20 20 40 40 21 21 21 21 21 21 21 46 46 40 46 3 Greatest Overweight (x) 7 | . . . . . . . . . . . . . . . 7 . Average Overweight (x) . | . . . . . . . . . . . . . . . . . Largest Inventory Capacity 5 | . 1 1 1 1 2 2 2 2 2 2 2 1 1 1 5 . Average Capacity 1 | . . 1 . . . 2 2 2 2 1 1 . 1 . 1 . Most Carried 1 | . . . . . 1 1 1 1 1 1 1 . . . . . Average Carried . | . . . . . . 1 1 1 1 . . . . . . . Final Capacity 2 | . 1 1 1 . 2 2 2 2 2 2 . 1 1 1 . . Final Carried 1 | . . . . . 1 1 1 1 1 1 . . . . . . Class Distribution -------------------- 29% | Assembler 23% | Sentry 23% | Grunt 11% | Borebot 4% | Troll Dominant Class ---------------- Grunt | -10/Materials Grunt | -10/Mines Sentry | -9/Materials Sentry | -9/Mines Cogmind | -9/Exiles Assembler | -8/Mines Assembler | -8/Materials Assembler | -8/Storage Assembler | -8/Recycling Assembler | -8/Scraptown Assembler | -6/Factory Borebot | -6/Lower Caves Borebot | -6/Lower Caves Sentry | -5/Factory Grunt | -5/Garrison Cogmind | -5/Factory Resources | -11 -10 -10 -9 -9 -9 -8 -8 -8 -8 -8 -6 -6 -6 -5 -5 -5 ----------- Run | Yrd Mat Min Mat Min Exi Min Mat Sto Rec Scr Fac Low Low Fac Gar Fac Matter Collected 375 | . . . . 173 . . . . . . . 9 71 98 24 . Remotely . | . . . . . . . . . . . . . . . . . Salvage Created 2642 | . 216 54 37 103 . 138 608 158 163 196 227 . 109 410 223 . Parts 181 | . 17 4 31 2 . 5 51 10 10 13 8 4 7 14 5 . Haulers Intercepted . | . . . . . . . . . . . . . . . . . Recyclers Shooed . | . . . . . . . . . . . . . . . . . Parts Field Recycled . | . . . . . . . . . . . . . . . . . Retrieved Matter . | . . . . . . . . . . . . . . . . . Parts Self-Destructed 14 | . . . . . . . . . . . . 7 7 . . . Prevented 2 | . . . . . . . . . . . . 2 . . . . Kills | -11 -10 -10 -9 -9 -9 -8 -8 -8 -8 -8 -6 -6 -6 -5 -5 -5 ------- Run | Yrd Mat Min Mat Min Exi Min Mat Sto Rec Scr Fac Low Low Fac Gar Fac Combat Hostiles Destroyed 85 | . 9 1 12 10 . 3 16 2 3 8 6 1 4 5 5 . Melee 3 | . . . . . . . . . . . . . . . 3 . Guns 75 | . 9 1 12 10 . 1 16 2 3 8 5 1 2 5 . . Cannons 2 | . . . . . . . . . . . . . 2 . . . AOE 3 | . . . . . . 2 . . . . . . . . 1 . Classes Destroyed 15 | . 3 . 1 1 . 1 2 . . 4 2 . . . 1 . Worker 2 | . . . . . . 1 1 . . . . . . . . . Recycler 2 | . . . . . . . 1 . . . . . . 1 . . Operator 2 | . . . . . . . 2 . . . . . . . . . Watcher 7 | . 3 . 1 . . . 3 . . . . . . . . . Swarmer 29 | . 6 . 7 1 . . 7 . . . 4 . 4 . . . Grunt 23 | . 3 1 3 . . 3 5 . . . . 1 . 4 3 . Brawler 1 | . . . . . . . . . . . 1 . . . . . Duelist 1 | . . . . . . . . . . . . . . . 1 . Sentry 12 | . . . 2 . . . 4 2 3 . . . . 1 . . Programmer 2 | . . . . . . . . . . . 1 . . . 1 . Bolteater 1 | . . . . . . . . . . 1 . . . . . . Federalist 2 | . . . . . . . . . . 2 . . . . . . Explorer 1 | . . . . . . . . . . 1 . . . . . . Scrapper 4 | . . . . . . . . . . 4 . . . . . . Assembled 9 | . . . . 9 . . . . . . . . . . . . Best Kill Streak 8 | . 2 1 4 2 . 4 8 2 1 8 3 1 4 6 3 . Combat Bots Only 8 | . 2 1 4 2 . 3 7 2 1 8 3 1 4 3 3 . Max Kills in Single Turn 3 | . 1 1 2 1 . 3 2 1 1 1 1 1 1 1 1 . Gunslinging . | . . . . . . . . . . . . . . . . . Exploded 2 | . . . . . . 2 . . . . . . . . 1 . Melee 1 | . . . . . . . . . . . . . . . 1 . Uniques/NPCs Destroyed . | . . . . . . . . . . . . . . . . . Combat | -11 -10 -10 -9 -9 -9 -8 -8 -8 -8 -8 -6 -6 -6 -5 -5 -5 -------- Run | Yrd Mat Min Mat Min Exi Min Mat Sto Rec Scr Fac Low Low Fac Gar Fac Hostile Shots Fired 768 | . 59 5 100 43 . . 29 2 . 25 159 3 50 117 175 1 Missed 233 | . 15 . 17 8 . . 15 . . 12 62 1 8 42 53 . Hits 535 | . 44 5 83 35 . . 14 2 . 13 97 2 42 75 122 1 Melee 12 | . . . . 6 . . . . . . 5 . . . . 1 Projectile 523 | . 44 5 83 29 . . 14 2 . 13 92 2 42 75 122 . AOE 1 | . . . . . . . . . . . 1 . . . . . Critical Strikes 15 | . . . 1 1 . . . . . 1 4 . . 6 2 . Part Disruptions 1 | . . . . 1 . . . . . . . . . . . . Damage Taken 6826 | . 392 40 849 506 . . 169 33 . 255 942 36 472 1154 1947 31 Core 1935 | . 168 12 124 93 . . 36 15 . 66 350 . 46 223 771 31 Absorbed by Shields 103 | . . . . . . . . . . . . . . . 103 . Ignored by Resistances 596 | . . . . 14 . . . . . . 288 . . 30 264 . Core Remaining (%) 60 | 100 . 28 . . . 45 . . . 78 . . 53 . . . Volleys Fired 215 | . 52 3 42 32 . . . . . 2 35 2 7 27 13 . Largest 3 | . 1 1 2 2 . . . . . 1 2 2 2 3 2 . Hottest 125 | . 65 65 79 79 . . . . . 80 70 61 61 79 125 . Shots Fired 413 | . 52 3 64 44 . 2 40 5 9 29 54 4 14 68 25 . Gun 404 | . 52 3 64 44 . 2 40 5 9 29 54 2 7 68 25 . Cannon 9 | . . . . . . . . . . . . 2 7 . . . Launcher . | . . . . . . . . . . . . . . . . . Special . | . . . . . . . . . . . . . . . . . Kinetic 137 | . . . 33 21 . . . . . . 3 4 14 62 . . Thermal 168 | . 52 3 31 23 . . . . . 2 51 . . 6 . . Explosive . | . . . . . . . . . . . . . . . . . Electromagnetic 108 | . . . . . . 2 40 5 9 27 . . . . 25 . Robot Hit Streak 28 | . 5 1 14 17 . 3 13 8 26 28 9 12 2 13 5 . Robot Miss Streak 4 | . 4 1 4 3 . 1 4 2 . 3 2 . 3 3 3 . Penetration Max 1 | . . . . . . . . . . . . . . 1 . . Secondary Targets 2 | . . . . . . . . . . . . . . 2 . . Max Gunslinging Chain 1 | . . . . . . . . . . . . . . 1 . . Autonomous 83 | . . . . . . 2 40 5 9 27 . . . . . . Shots Hit Robots 303 | . 29 1 38 24 . 2 37 4 9 28 42 3 6 50 30 . Core Hits 156 | . 13 1 16 14 . 6 35 4 6 16 15 3 4 18 5 . Critical Kills 1 | . . . 1 . . . . . . . . . . . . . Critical Parts Destroyed 5 | . . . . . . . . . . . . . . . 5 . Critical Strikes 22 | . . . 1 1 . . 7 . 1 2 1 . . 1 8 . Burn 2 | . . . . 1 . . . . . . . . . 1 . . Destroy 2 | . . . 1 . . . . . . . 1 . . . . . Corrupt 13 | . . . . . . . 7 . 1 2 . . . . 3 . Smash 5 | . . . . . . . . . . . . . . . 5 . Melee Attacks 14 | . . . . . . . . . . . . . . . 14 . Impact 14 | . . . . . . . . . . . . . . . 14 . Slashing . | . . . . . . . . . . . . . . . . . Piercing . | . . . . . . . . . . . . . . . . . Sneak Attacks 1 | . . . . . . . . . . . . . . . 1 . Combat Hostiles 1 | . . . . . . . . . . . . . . . 1 . Follow-up Attacks . | . . . . . . . . . . . . . . . . . Damage Inflicted 6161 | . 442 15 602 370 . 274 1164 120 122 581 481 55 128 985 822 . Guns 5056 | . 442 15 597 370 . 57 1123 120 122 581 477 37 44 985 86 . Cannons 102 | . . . . . . . . . . . . 18 84 . . . Explosions 335 | . . . . . . 217 41 . . . . . . . 77 . Melee 659 | . . . . . . . . . . . . . . . 659 . Ramming 9 | . . . 5 . . . . . . . 4 . . . . . Kinetic 1677 | . . . 335 225 . . . . . . 47 55 128 887 . . Thermal 1778 | . 442 15 262 145 . 217 41 . . 51 430 . . 98 77 . Explosive . | . . . . . . . . . . . . . . . . . Electromagnetic 2038 | . . . . . . 57 1123 120 122 530 . . . . 86 . Impact 659 | . . . . . . . . . . . . . . . 659 . Slashing . | . . . . . . . . . . . . . . . . . Piercing . | . . . . . . . . . . . . . . . . . Highest Corruption 4 | . . . . 4 4 4 . . . . . . . . . . Average Corruption 4 | . . . . 4 4 4 . . . . . . . . . . Corruption Purged . | . . . . . . . . . . . . . . . . . Corruption Blocked . | . . . . . . . . . . . . . . . . . Effects 13 | . . . . 11 1 1 . . . . . . . . . . Message Errors 2 | . . . . 1 1 . . . . . . . . . . . Matter Fused 3 | . . . . 3 . . . . . . . . . . . . Heat Flow Errors 3 | . . . . 3 . . . . . . . . . . . . Energy Discharges 2 | . . . . 2 . . . . . . . . . . . . Data Loss (minor) 1 | . . . . . . 1 . . . . . . . . . . Alerts 2 | . . . . 2 . . . . . . . . . . . . Overload Shots . | . . . . . . . . . . . . . . . . . Overflow Damage 344 | . . . . . . . . . . 23 . . . . 321 . Projectiles . | . . . . . . . . . . . . . . . . . Explosions 23 | . . . . . . . . . . 23 . . . . . . Melee 321 | . . . . . . . . . . . . . . . 321 . Knockbacks 4 | . . . . . . . . . . . . . . . 4 . Impact 4 | . . . . . . . . . . . . . . . 4 . Kinetic . | . . . . . . . . . . . . . . . . . Secondary . | . . . . . . . . . . . . . . . . . Self-Inflicted Damage 71 | . . . . . . . . . . 24 2 . . . 45 . Shots 2 | . . . . . . . . . . 1 . . . . 1 . Rammed 2 | . . . 1 . . . . . . . 1 . . . . . Targets Rammed 2 | . . . 1 . . . . . . . 1 . . . . . Kicked . | . . . . . . . . . . . . . . . . . Crushed . | . . . . . . . . . . . . . . . . . Highest Temperature 362 | . 39 . 29 304 . . 2 . . 200 239 . . 99 362 . Average Temperature 98 | . 12 . 12 108 . . 2 . . 46 114 . . 40 185 . Received Heat Transfer 1879 | . 81 . 156 220 . . 36 9 . 147 78 18 48 567 519 . Effects 4 | . . . . . . . . . . . 2 . . . 2 . Energy Bleed 2 | . . . . . . . . . . . 1 . . . 1 . Interference 2 | . . . . . . . . . . . 1 . . . 1 . Siege Activations . | . . . . . . . . . . . . . . . . . Martial Activations . | . . . . . . . . . . . . . . . . . Shielding Activations . | . . . . . . . . . . . . . . . . . Robots Disrupted 1 | . . . . . . . . . 1 . . . . . . . Combat Hostiles 1 | . . . . . . . . . 1 . . . . . . . Robots Corrupted 1 | . . . . . . . . . . . . . . . 1 . Combat Hostiles 1 | . . . . . . . . . . . . . . . 1 . Parts Fried 15 | . . . . . . . 6 1 1 4 . . . . 3 . Impact Corruptions 9 | . . . . . . . . . . . . . . . 9 . Robots Melted 1 | . . . . . . . . . . . 1 . . . . . Combat Hostiles 1 | . . . . . . . . . . . 1 . . . . . Parts Melted 10 | . 3 . 1 . . . . . . 1 5 . . . . . Heat Transferred 4399 | . 1013 37 629 444 . 300 100 . . 87 1480 . . 259 50 . Parts Sabotaged . | . . . . . . . . . . . . . . . . . Parts Stolen . | . . . . . . . . . . . . . . . . . Parts Stripped . | . . . . . . . . . . . . . . . . . Power Chain Reactions 3 | . . . . . . . 1 . . 1 . . . . 1 . Alert | -11 -10 -10 -9 -9 -9 -8 -8 -8 -8 -8 -6 -6 -6 -5 -5 -5 ------- Run | Yrd Mat Min Mat Min Exi Min Mat Sto Rec Scr Fac Low Low Fac Gar Fac Maximum Alert Level 1 | . . . . . . . 1 . . . . . . . 1 . Low Security (%) 98 | 100 100 100 100 100 . 100 87 100 100 . 100 . . 100 93 100 Level 1 1 | . . . . . . . 12 . . . . . . . 6 . Level 2 . | . . . . . . . . . . . . . . . . . Level 3 . | . . . . . . . . . . . . . . . . . Level 4 . | . . . . . . . . . . . . . . . . . Level 5 . | . . . . . . . . . . . . . . . . . High Security . | . . . . . . . . . . . . . . . . . Max Security . | . . . . . . . . . . . . . . . . . Peak Influence 310 | . 76 91 166 48 . 152 310 162 30 . 118 . . 65 229 119 Initial 122 | . . 9 19 48 . . 24 122 . . . . . 4 28 119 Average 38 | . 27 21 89 4 . 97 69 119 8 . 26 . . 9 91 119 Influence Increases 2578 | . 282 167 530 65 . 162 452 60 60 . 280 20 90 149 261 . Destroy 0b10 Robot/C 1540 | . 180 100 340 20 . 60 320 40 60 . 120 20 80 100 100 . Destroy 0b10 Robot/NC 65 | . 15 . 5 . . 5 35 . . . . . . 5 . . Destroy Leader 264 | . 26 20 52 . . 10 76 20 . . 20 . 10 20 10 . Allied During Kill 58 | . . 32 26 . . . . . . . . . . . . . Successful Hack 103 | . 31 . . . . . . . . . 35 . . 9 28 . Disable Machine 135 | . . 15 30 . . 75 . . . . . . . 15 . . Destroy Structure 38 | . . . 2 . . 12 6 . . . . . . . 18 . Partial Spotted 60 | . . . 15 . . . 15 . . . 30 . . . . . Lose Combat Pursuer 315 | . 30 . 60 45 . . . . . . 75 . . . 105 . Influence Decreases 2459 | . 256 142 455 154 37 100 222 352 60 . 258 42 82 117 72 110 Entered New Map 507 | . . 17 32 78 37 . 38 170 . . . 9 . 4 12 110 Time Decay 1348 | . 246 105 278 76 . 100 159 60 60 . 148 33 30 53 . . Lost Part 330 | . . . 60 . . . . . . . 110 . 40 60 60 . Lost Ally 100 | . . 20 80 . . . . . . . . . . . . . Purge Threat 147 | . . . . . . . 25 122 . . . . . . . . Miscellaneous 27 | . 10 . 5 . . . . . . . . . 12 . . . Squads Dispatched 12 | . 1 . 1 . . . . . . . 6 . . 4 . . Investigation 6 | . . . 1 . . . . . . . 3 . . 2 . . Extermination 2 | . . . . . . . . . . . 2 . . . . . Reinforcement 3 | . 1 . . . . . . . . . 1 . . 1 . . Assault . | . . . . . . . . . . . . . . . . . Garrison 1 | . . . . . . . . . . . . . . 1 . . Intercept . | . . . . . . . . . . . . . . . . . Searches Triggered . | . . . . . . . . . . . . . . . . . Construction Impeded . | . . . . . . . . . . . . . . . . . Haulers Reinforced 1 | . . . . . . . . . . . . . . 1 . . Active Scanning Responses . | . . . . . . . . . . . . . . . . . Cargo Convoy Interrupts 1 | . . . . . . . . . . . 1 . . . . . Stealth | -11 -10 -10 -9 -9 -9 -8 -8 -8 -8 -8 -6 -6 -6 -5 -5 -5 --------- Run | Yrd Mat Min Mat Min Exi Min Mat Sto Rec Scr Fac Low Low Fac Gar Fac Distress Signals 10 | . 1 . 3 1 . . 2 . . . 3 . . . . . Communications Jammed . | . . . . . . . . . . . . . . . . . Distress Signals . | . . . . . . . . . . . . . . . . . Times Spotted 192 | . 22 5 21 20 . 3 21 2 3 18 27 1 5 10 31 3 Peak Tracking Total 10 | . 4 3 6 3 . 3 6 1 1 7 8 1 4 4 10 3 Tactical Retreats 19 | . 2 . 3 6 . . . . . . 4 . . . 4 . Traps | -11 -10 -10 -9 -9 -9 -8 -8 -8 -8 -8 -6 -6 -6 -5 -5 -5 ------- Run | Yrd Mat Min Mat Min Exi Min Mat Sto Rec Scr Fac Low Low Fac Gar Fac Traps Triggered 7 | . . . 1 . . . 1 . . . 2 . . . 3 . Indirectly . | . . . . . . . . . . . . . . . . . Trap Hack Attempts . | . . . . . . . . . . . . . . . . . Triggered . | . . . . . . . . . . . . . . . . . Disarmed . | . . . . . . . . . . . . . . . . . Reprogrammed 4 | . . . . . . . 4 . . . . . . . . . Reused . | . . . . . . . . . . . . . . . . . Traps Extracted . | . . . . . . . . . . . . . . . . . Installed . | . . . . . . . . . . . . . . . . . Triggered . | . . . . . . . . . . . . . . . . . Machines | -11 -10 -10 -9 -9 -9 -8 -8 -8 -8 -8 -6 -6 -6 -5 -5 -5 ---------- Run | Yrd Mat Min Mat Min Exi Min Mat Sto Rec Scr Fac Low Low Fac Gar Fac Machines Disabled 10 | . . 1 2 . . 5 . . . 1 . . . 1 . . Max in Single Turn 5 | . . 1 . . . 5 . . . 1 . . . 1 . . Garrison Access 1 | . . . . . . . 1 . . . . . . . . . Machines Repaired . | . . . . . . . . . . . . . . . . . Machines Dismantled . | . . . . . . . . . . . . . . . . . Machines Sabotaged . | . . . . . . . . . . . . . . . . . Overloaded Fab Kills . | . . . . . . . . . . . . . . . . . Hacking | -11 -10 -10 -9 -9 -9 -8 -8 -8 -8 -8 -6 -6 -6 -5 -5 -5 --------- Run | Yrd Mat Min Mat Min Exi Min Mat Sto Rec Scr Fac Low Low Fac Gar Fac Machines Accessed 43 | . 7 1 1 . 1 . 6 3 3 5 10 . . 4 2 . Terminals 25 | . 7 . 1 . . . 5 3 1 . 4 . . 2 2 . Fabricators 2 | . . . . . . . . . . . 1 . . 1 . . Repair Stations 3 | . . . . . . . . . . . 3 . . . . . Recycling Units 2 | . . . . . . . . . . . 2 . . . . . Scanalyzers . | . . . . . . . . . . . . . . . . . Garrison Access 2 | . . . . . . . 1 . . . . . . 1 . . Total Hacks 205 | . 14 1 2 . 3 . 52 22 31 30 32 . . 14 4 . Successful 167 | . 7 1 1 . 3 . 48 20 31 30 18 . . 6 2 . Failed 38 | . 7 . 1 . . . 4 2 . . 14 . . 8 2 . Catastrophic 8 | . 2 . 1 . . . . . . . 2 . . 2 1 . Database Lockouts . | . . . . . . . . . . . . . . . . . Manual 98 | . . . . . . . 43 16 7 . 25 . . 7 . . Terminals 131 | . 14 . 2 . . . 51 22 7 . 22 . . 9 4 . Fabricators 3 | . . . . . . . . . . . 1 . . 2 . . Repair Stations 4 | . . . . . . . . . . . 4 . . . . . Recycling Units 5 | . . . . . . . . . . . 5 . . . . . Scanalyzers . | . . . . . . . . . . . . . . . . . Garrison Access 4 | . . . . . . . 1 . . . . . . 3 . . Terminal Hacks 116 | . 7 1 1 . 3 . 27 14 25 30 4 . . 2 2 . Record 57 | . . . . . 3 . 2 3 24 25 . . . . . . Part Schematic 1 | . . . . . . . . 1 . . . . . . . . Robot Analysis 15 | . 2 . . . . . 9 . . 4 . . . . . . Prototype ID Bank 3 | . 3 . . . . . . . . . . . . . . . Open Door 2 | . . 1 . . . . . 1 . . . . . . . . Branch Access Points 5 | . . . . . . . 2 1 1 . . . . 1 . . Emergency Access Points 1 | . . . . . . . . . . . . . . . 1 . Machine Index 3 | . . . . . . . 1 1 . . 1 . . . . . Alert Level 2 | . . . . . . . . 1 . . . . . 1 . . Unreport Threat 3 | . . . . . . . 1 2 . . . . . . . . Locate Traps 3 | . . . . . . . 3 . . . . . . . . . Reprogram Traps 1 | . . . . . . . 1 . . . . . . . . . Dispatch Records 2 | . . . . . . . 1 1 . . . . . . . . Maintenance Status 1 | . 1 . . . . . . . . . . . . . . . Security Status 1 | . . . . . . . . 1 . . . . . . . . Surveillance Status 1 | . . . . . . . . 1 . . . . . . . . Patrol Status 1 | . . . . . . . 1 . . . . . . . . . Transport Status 2 | . . . . . . . 1 1 . . . . . . . . Investigation Status 1 | . . . 1 . . . . . . . . . . . . . Recall Investigation 2 | . . . . . . . . . . . 2 . . . . . Recall Reinforcements 1 | . . . . . . . . . . . 1 . . . . . Hauler Manifests 2 | . . . . . . . 2 . . . . . . . . . Registered Prototypes 2 | . 1 . . . . . 1 . . . . . . . . . Zone Layout 2 | . . . . . . . 2 . . . . . . . . . Garrison Registry 1 | . . . . . . . . . . . . . . . 1 . Proto ID Catalog 1 | . . . . . . . . . . 1 . . . . . . Fabricator Hacks 2 | . . . . . . . . . . . 1 . . 1 . . Network Status 2 | . . . . . . . . . . . 1 . . 1 . . Repair Station Hacks 3 | . . . . . . . . . . . 3 . . . . . Refit 3 | . . . . . . . . . . . 3 . . . . . Recycling Unit Hacks . | . . . . . . . . . . . . . . . . . Scanalyzer . | . . . . . . . . . . . . . . . . . Garrison Access Hacks 2 | . . . . . . . 1 . . . . . . 1 . . Unlock Access 1 | . . . . . . . . . . . . . . 1 . . Seal Access 1 | . . . . . . . 1 . . . . . . . . . Unauthorized Hacks 44 | . . . . . . . 20 6 6 . 10 . . 2 . . Terminals 42 | . . . . . . . 20 6 6 . 8 . . 2 . . Track 5 | . . . . . . . 3 1 1 . . . . . . . Assimilate 7 | . . . . . . . 4 1 1 . 1 . . . . . Botnet 11 | . . . . . . . 3 1 1 . 4 . . 2 . . Disrupt 7 | . . . . . . . 4 1 1 . 1 . . . . . Operators 4 | . . . . . . . 2 1 1 . . . . . . . Skim 8 | . . . . . . . 4 1 1 . 2 . . . . . Fabricators . | . . . . . . . . . . . . . . . . . Repair Stations . | . . . . . . . . . . . . . . . . . Recycling Units 2 | . . . . . . . . . . . 2 . . . . . Fedlink 2 | . . . . . . . . . . . 2 . . . . . Scanalyzers . | . . . . . . . . . . . . . . . . . Garrison Access . | . . . . . . . . . . . . . . . . . Data Cores Recovered 2 | . . . . . . . 2 . . . . . . . . . Used 2 | . . . . . . . 2 . . . . . . . . . Hacking Detections 23 | . 6 . 1 . . . 5 . . . 6 . . 4 1 . Full Trace Events 3 | . . . . . . . . . . . 1 . . 2 . . Feedback Events . | . . . . . . . . . . . . . . . . . Feedback Blocked . | . . . . . . . . . . . . . . . . . Robot Schematics Acquired . | . . . . . . . . . . . . . . . . . Robots Built . | . . . . . . . . . . . . . . . . . Authchips . | . . . . . . . . . . . . . . . . . Time . | . . . . . . . . . . . . . . . . . Total Robot Build Rating . | . . . . . . . . . . . . . . . . . Part Schematics Acquired 1 | . . . . . . . . 1 . . . . . . . . Parts Built . | . . . . . . . . . . . . . . . . . Authchips . | . . . . . . . . . . . . . . . . . Time . | . . . . . . . . . . . . . . . . . Total Part Build Rating . | . . . . . . . . . . . . . . . . . Parts Repaired . | . . . . . . . . . . . . . . . . . Time . | . . . . . . . . . . . . . . . . . Parts Recycled . | . . . . . . . . . . . . . . . . . Recycled Matter . | . . . . . . . . . . . . . . . . . Retrieved Matter . | . . . . . . . . . . . . . . . . . Retrieved Components . | . . . . . . . . . . . . . . . . . Parts Scanalyzed . | . . . . . . . . . . . . . . . . . Part Schematics Acquired . | . . . . . . . . . . . . . . . . . Parts Damaged . | . . . . . . . . . . . . . . . . . Bothacking | -11 -10 -10 -9 -9 -9 -8 -8 -8 -8 -8 -6 -6 -6 -5 -5 -5 ------------ Run | Yrd Mat Min Mat Min Exi Min Mat Sto Rec Scr Fac Low Low Fac Gar Fac Used RIF Installer . | . . . . . . . . . . . . . . . . . Robots Hacked 11 | . 2 . 2 . . . . . . . 1 . 1 2 3 . Non-combat . | . . . . . . . . . . . . . . . . . Combat 11 | . 2 . 2 . . . . . . . 1 . 1 2 3 . Robot Hacks Applied 14 | . 2 . 2 . . . . . . . 2 . 1 4 3 . find_shortcuts 11 | . 2 . 2 . . . . . . . 1 . 1 2 3 . find_garrison 3 | . . . . . . . . . . . 1 . . 2 . . Relay Couplers Released . | . . . . . . . . . . . . . . . . . Fabnet Peak Effective % . | . . . . . . . . . . . . . . . . . Robots Rewired . | . . . . . . . . . . . . . . . . . Allies Hacked . | . . . . . . . . . . . . . . . . . Hacks Repelled . | . . . . . . . . . . . . . . . . . Allies | -11 -10 -10 -9 -9 -9 -8 -8 -8 -8 -8 -6 -6 -6 -5 -5 -5 -------- Run | Yrd Mat Min Mat Min Exi Min Mat Sto Rec Scr Fac Low Low Fac Gar Fac Total Allies 5 | . . 5 . . . . . . . . . . . . . . Largest Group 5 | . . 5 4 . . . . . . . . . . . . . Highest-Rated Group 89 | . . 89 73 . . . . . . . . . . . . . Highest-Rated Ally 31 | . . 31 31 . . . . . . . . . . . . . Total Orders . | . . . . . . . . . . . . . . . . . Ally Attacks 51 | . . 14 37 . . . . . . . . . . . . . Total Damage 377 | . . 135 242 . . . . . . . . . . . . . Kills 9 | . . 4 5 . . . . . . . . . . . . . Allies Corrupted . | . . . . . . . . . . . . . . . . . Allies Melted 2 | . . . . . . . . . . 2 . . . . . . Intel | -11 -10 -10 -9 -9 -9 -8 -8 -8 -8 -8 -6 -6 -6 -5 -5 -5 ------- Run | Yrd Mat Min Mat Min Exi Min Mat Sto Rec Scr Fac Low Low Fac Gar Fac Active Infowar (turns) . | . . . . . . . . . . . . . . . . . Robot Analysis Total 24 | . 4 . 1 1 . . 7 . . 5 . 1 1 2 2 . Derelict Logs Recovered 5 | . . 2 . 2 . . . . . . . 1 . . . . Drone Launches . | . . . . . . . . . . . . . . . . . Drone Recoveries . | . . . . . . . . . . . . . . . . . Exploration | -11 -10 -10 -9 -9 -9 -8 -8 -8 -8 -8 -6 -6 -6 -5 -5 -5 ------------- Run | Yrd Mat Min Mat Min Exi Min Mat Sto Rec Scr Fac Low Low Fac Gar Fac Turns Passed 6828 | 9 790 660 600 1213 88 216 414 147 216 365 640 747 109 331 267 16 Spaces Moved 5596 | 18 616 513 310 768 144 269 355 156 259 438 706 605 58 156 193 32 Core 368 | 18 151 . 2 6 91 . . . . 2 1 2 . 1 62 32 Treads 1173 | . . . 200 334 . . . . . . . 427 58 146 8 . Legs 1164 | . 465 513 108 . . . . . . . . . . 9 69 . Wheels . | . . . . . . . . . . . . . . . . . Hover 2626 | . . . . 428 53 269 355 156 259 436 640 . . . 30 . Flight 265 | . . . . . . . . . . . 65 176 . . 24 . Fastest Speed 32 | 50 50 120 50 50 50 80 80 80 80 50 32 32 160 50 32 50 Average Speed 99 | 50 102 120 145 103 61 80 80 80 80 79 75 122 160 156 81 50 Slowest Speed 400 | 50 120 120 160 160 80 80 80 80 80 80 80 160 160 160 400 50 Overloaded Moves . | . . . . . . . . . . . . . . . . . Propulsion Burnouts . | . . . . . . . . . . . . . . . . . Robots Hopped . | . . . . . . . . . . . . . . . . . Potential Cave-ins 2 | . . . . 2 . . . . . . . . . . . . Cave-ins Triggered . | . . . . . . . . . . . . . . . . . Exploration Rate (%) 43 | 4 89 95 27 97 51 60 49 23 52 38 16 74 14 5 46 3 Regions Visited 16 Branch Regions 9 Pre-discovered Areas 4 | . . 1 . . 1 . . . . . 1 1 . . . . Known Exits Taken 4 | . . . . . . . 1 1 . . . 1 . 1 . . Unknown Exits Taken 11 | 1 1 1 1 1 1 1 . . 1 1 1 . 1 . . . Scrap Searched 4 | . . 2 . 1 . 1 . . . . . . . . . . Spaces Dug . | . . . . . . . . . . . . . . . . . Terrain Destroyed 30 | . . . . . . 12 5 . . 1 . . 1 . 11 . Melee . | . . . . . . . . . . . . . . . . . Projectile 1 | . . . . . . . . . . . . . 1 . . . AOE 29 | . . . . . . 12 5 . . 1 . . . . 11 . Terrain Rammed . | . . . . . . . . . . . . . . . . . Walls Destroyed . | . . . . . . . . . . . . . . . . . Machines Disabled . | . . . . . . . . . . . . . . . . . Actions | -11 -10 -10 -9 -9 -9 -8 -8 -8 -8 -8 -6 -6 -6 -5 -5 -5 --------- Run | Yrd Mat Min Mat Min Exi Min Mat Sto Rec Scr Fac Low Low Fac Gar Fac Total 6524 | 17 720 554 395 1143 143 269 484 177 267 451 758 609 64 189 252 32 Wait 691 | . 53 39 43 344 . 1 130 22 9 12 16 3 . 6 13 . Move 5581 | 17 615 512 309 767 143 268 354 155 258 437 705 604 57 156 192 32 Hop . | . . . . . . . . . . . . . . . . . Pick Up . | . . . . . . . . . . . . . . . . . Fast Attach . | . . . . . . . . . . . . . . . . . Attach . | . . . . . . . . . . . . . . . . . Detach . | . . . . . . . . . . . . . . . . . Swap . | . . . . . . . . . . . . . . . . . Drop . | . . . . . . . . . . . . . . . . . Fire 215 | . 52 3 42 32 . . . . . 2 35 2 7 27 13 . Melee 14 | . . . . . . . . . . . . . . . 14 . Ram 1 | . . . . . . . . . . . 1 . . . . . Kick . | . . . . . . . . . . . . . . . . . Crush 1 | . . . 1 . . . . . . . . . . . . . Escape Stasis 20 | . . . . . . . . . . . . . . . 20 . Rewire 1 | . . . . . . . . . . . 1 . . . . . Trap . | . . . . . . . . . . . . . . . . . Miscellaneous . | . . . . . . . . . . . . . . . . . Route ------- -11/Scrapyard -10/Materials (discovered 4 exits: *Mat x3 / *Min) -10/Mines (discovered 2 exits: *Mat x2) -9/Materials -9/Mines (discovered 2 exits: *Mat / *Exi) -9/Exiles -8/Mines -8/Materials (discovered 2 exits: [Fac] / *Sto) -8/Storage -8/Recycling (discovered 2 exits: *Fac / *Scr) -8/Scraptown -6/Factory -6/Lower Caves -6/Lower Caves -5/Factory (discovered 3 exits: Upp x2 / Gar) -5/Garrison (discovered 3 exits: *Fac x3) -5/Factory History --------- Turn | Location | Event 4 | -11/Scrapyard | Discovered new exit (range 13) 10 | -11/Scrapyard | Entered Materials 47 | -10/Materials | Discovered new exit (range 5) 331 | -10/Materials | Discovered new exit (range 14) 413 | -10/Materials | Core integrity fell below 50% 482 | -10/Materials | Discovered new exit (range 8) 568 | -10/Materials | Discovered new exit (range 15) 800 | -10/Materials | Entered Mines 853 | -10/Mines | Assisted by bots powering up and referring to "LRC-V3" 892 | -10/Mines | Met a Derelict bent on vengeance 896 | -10/Mines | Discovered new exit (range 5) 935 | -10/Mines | Learned location of Storage (-8) 1140 | -10/Mines | Learned 2 Materials zone layouts 1154 | -10/Mines | Learned Materials emergency access door positions 1383 | -10/Mines | Discovered new exit (range 8) 1393 | -10/Mines | Found the Drone Emporium 1460 | -10/Mines | Entered Materials 1460 | -9/Materials | Accompanied by 4 allies 1465 | -9/Materials | Led the pair of lost Derelicts to an unsafe place 1552 | -9/Materials | Lost 4 allies 1867 | -9/Materials | Lost 4 parts (1p2u1w) 2031 | -9/Materials | Discovered new exit (range 7) 2060 | -9/Materials | Entered Mines 2100 | -9/Mines | Assembled infested the area 2774 | -9/Mines | Learned Materials stockpile data 2974 | -9/Mines | Core integrity fell below 50% 3030 | -9/Mines | Learned location of 1 exit from Lower Caves 3073 | -9/Mines | Discovered new exit (range 10) 3271 | -9/Mines | Deemed a non-threat by the Exiles lab entrance 3271 | -9/Mines | Discovered new exit (range 5) 3273 | -9/Mines | Entered Exiles 3286 | -9/Exiles | Met 8R-AWN 3294 | -9/Exiles | Met EX-HEX 3312 | -9/Exiles | Met EX-DEC 3319 | -9/Exiles | Took control of EX-DEC (ally) 3330 | -9/Exiles | Learned location of Zion (-6) 3354 | -9/Exiles | Discovered new exit (range 10) 3361 | -9/Exiles | Left Exiles lab with Deploy-a-Sentry 3361 | -9/Exiles | Entered Mines 3557 | -8/Mines | Discovered new exit (range 9) 3577 | -8/Mines | Entered Materials 3733 | -8/Materials | Identified exit to Storage 3820 | -8/Materials | Discovered new exit (range 17) 3973 | -8/Materials | Destroyed 7 combat bots 3991 | -8/Materials | Entered Storage 4046 | -8/Storage | Identified exit to Recycling 4134 | -8/Storage | Used back door to open Recycling access 4138 | -8/Storage | Entered Recycling 4246 | -8/Recycling | Discovered new exit (range 16) 4332 | -8/Recycling | Scanned before Scraplab entrance 4344 | -8/Recycling | Entered Scraplab 4352 | -8/Recycling | Discovered new exit (range 3) 4354 | -8/Recycling | Entered Scraptown 4437 | -8/Scraptown | Visited UFD Registry 4437 | -8/Scraptown | Registered with UFD as "Pulsehacker" 4457 | -8/Scraptown | Visited Observation Area 4504 | -8/Scraptown | Visited Analyses Database 4523 | -8/Scraptown | Visited Science Guys 4561 | -8/Scraptown | Visited Junk Cannon Lab 4593 | -8/Scraptown | Met Optimus 4593 | -8/Scraptown | Accepted into 0bPrime 4651 | -8/Scraptown | Visited Scrapoid Research Area 4654 | -8/Scraptown | Civil war broke out across Scraptown 4685 | -8/Scraptown | Discovered new exit (range 8) 4711 | -8/Scraptown | Took control of EX-DEC (ally) 4719 | -8/Scraptown | Entered Factory 4729 | -6/Factory | Destroyed 8 combat bots 4737 | -6/Factory | Lost 6 allies 4828 | -6/Factory | Loaded intel: 8 recycling unit locations 4881 | -6/Factory | Lost 8 parts (1p7u) 4948 | -6/Factory | Learned location of Protoforge (-2) 5220 | -6/Factory | Lost 3 parts (1p1u1w) 5340 | -6/Factory | Discovered new exit (range 14) 5359 | -6/Factory | Cargo convoy interrupted 5359 | -6/Factory | Entered Lower Caves 5360 | -6/Lower Caves | Identified exit to Lower Caves 5362 | -6/Lower Caves | Lost 8 parts (1p5u2w) 5412 | -6/Lower Caves | Encountered a Warlord checkpoint 6106 | -6/Lower Caves | Entered another Lower Caves area 6192 | -6/Lower Caves | Attracted the attention of an 0b10 checkpoint 6194 | -6/Lower Caves | Discovered new exit (range 15) 6215 | -6/Lower Caves | Entered Factory 6409 | -5/Factory | Identified exit to Upper Caves 6462 | -5/Factory | Garrison activated, responded to threat 6546 | -5/Factory | Identified exit to Garrison 6546 | -5/Factory | Entered Garrison 6558 | -5/Garrison | Triggered checkpoint 6573 | -5/Garrison | Lost 6 parts (1p1n1u3w) 6597 | -5/Garrison | Spotted B-86 Titan 6684 | -5/Garrison | Triggered checkpoint 6688 | -5/Garrison | Triggered checkpoint 6733 | -5/Garrison | Core integrity fell below 50% 6768 | -5/Garrison | Core integrity fell below 20% 6774 | -5/Garrison | Triggered checkpoint 6782 | -5/Garrison | Lost 4 parts (2n1u1w) 6801 | -5/Garrison | Discovered new exit (range 15) 6811 | -5/Garrison | Discovered new exit (range 79) 6811 | -5/Garrison | Discovered new exit (range 7) 6811 | -5/Garrison | Discovered new exit (range 41) 6813 | -5/Garrison | Entered Factory 6829 | -5/Factory | Destroyed by L-41 Fighter with Axe Last Messages --------------- 06789_ Stasis field depleted. 06789_ Autogun destroyed. 06790_ Triggered Stasis Trap. 06790_ A bubble of rippling energy engulfs the area. 06790_ Field strength at 95. 06791_ Field strength at 90. 06792_ Field strength at 85. 06793_ Released control of S-27 Virus. 06801_ EXIT=FOUND 06811_ Connecting with Garrison Terminal... 06811_ EXIT=FOUND >>Download(Registry) Retrieving Garrison registry... Downloaded map data. Downloaded component registry. Downloaded security status. LOCATION=UNKNOWN GOAL=ESCAPE 06828_ Connecting with Repair Station... 06828_ Current location identified: Factory Map ----- +----------------------------------------------------+ | ???# """ # ??????????????????? | | ???? """ # ######????????????????????????? | | ???? """ ?# #?????????????????????????????? | | ???? ?##### #?????????????????????????????? | | ???#######??????# #?????????????????????????????? | | ????????????????# #?????????????????????????????? | | ????????????????# #?????????????????????????????? | | ???????########## #?????????????????????????????? | | ???????# # #?????????????????????????????? | | ???????# #?????????????????????????????? | | ???????# #########?????????????????????? | | ???????# """ """ ## #?????????????????????? | | ???????#? """ """ ## "" #?????????????????????? | | ???????# """ """ ## "" #?????????????????????? | | ???????# ## """ #?????????????????????? | | ???????# """ """ + """ #?????????????????????? | | ????????? """ """ ## """ #?????????????????????? | | ??????????""" """ ## #?????????????????????? | | ?????????? ## #?????????????????????? | | ???????????"" """ ## "" #?????????????????????? | | ???????????"" """ ## """#?????????????????????? | | ???????????"" """ ## R"#?????????????????????? | | ??????????? ## """#????????####?????????? | | ?????????????? ?# #???? ????????? | | ?????????? ######/## ????????? | | ?????????? @ ????????? | | ?????????? g l ????????? | | ?????????????######### g ????????? | | ?????????????????????+ !! ?????????? | | ?????????????????????# !! """ """ """ ?????????? | | ?????????????????????# !! k""" """ ""???????????? | | ?????????????????????# """ """??????????????? | | ?????????????????????# "" ???????????????? | | ????????????????????? " """??"???????????????? | | ????????????????????? "F ""???????????????????? | | ???????????????????? "" ""???????????????????? | | ???????????????????? ?? ????????????????????? | | ??????????????????? ?? ????????????????????? | | ???????????????????####??? ????????????????????? | | ?????????????????????????? ##????????????????????? | | ?????????????????????????????????????????????????? | | ?????????????????????????????????????????????????? | | ?????????????????????????????????????????????????? | | ?????????????????????????????????????????????????? | | ?????????????????????????????????????????????????? | | ?????????????????????????????????????????????????? | | ?????????????????????????????????????????????????? | | ?????????????????????????????????????????????????? | | ?????????????????????????????????????????????????? | | ?????????????????????????????????????????????????? | +----------------------------------------------------+ Best States ------------- Heat Dissipation 60 Energy Generation 31 Energy Capacity 260 Matter Stores 178 Matter Capacity 200 Sight Range 16 Terrain Scan Density 10 Armor Coverage 225 Resistance: KI 25 Resistance: EX 50 Resistance: EM 90 Resistance: I 25 Resistance: S 25 Weapon Cycling 15 Phase Shifting 5 Evasion (%) 63 Targeting Accuracy 10 Launcher Accuracy 40 Target Analysis 6 Core Analysis 8 Armor Integrity Analysis 40 Recoil Reduction 2 Salvage Targeting 4 Offensive Hacking 70 Defensive Hacking 56 Item Schematics ----------------- Arm. Huge Wheel | -8/Storage | Hacked Robot Schematics ------------------ None Fabricated ------------ Nothing Repaired ---------- Nothing Alien Tech Used ----------------- None Achievements -------------- None Challenges ------------ None Polymind | -11 -10 -10 -9 -9 -9 -8 -8 -8 -8 -8 -6 -6 -6 -5 -5 -5 ---------- Run | Yrd Mat Min Mat Min Exi Min Mat Sto Rec Scr Fac Low Low Fac Gar Fac Hosts 16 | . 2 . 2 1 1 . . . . 2 1 1 1 2 3 . Combat Hostiles 13 | . 2 . 2 1 . . . . . 1 1 . 1 2 3 . Allies 3 | . . . . . 1 . . . . 1 . 1 . . . . Unique Host Classes 10 | . 1 . 1 1 1 . . . . 1 1 1 . 1 2 . Average Host Suspicion 69 | . 94 77 93 61 . 92 88 82 67 . 89 46 59 49 70 . Unsuspicious Activity 728 | . 22 . 11 298 16 . . . . 321 . 10 25 25 . . Returns to Shadow 1 | . . . . 1 . . . . . . . . . . . . Fuzzy Dispatches 2 | . . . . . . . . . . . 2 . . . . . Protomatter Created 1735 | . 22 15 106 79 . 35 125 . 17 983 21 198 . 75 59 . Used 525 | . 45 . 46 16 33 . . . . 63 14 20 51 96 141 . Decayed 598 | . . . 5 47 . . . . . 383 . 163 . . . . Highest Spend 74 | . 30 . 23 16 33 . . . . 33 14 20 51 51 74 . Top 5 Hosts by Kills: EX-DEC (-9/Exiles: 30) G-47 Trooper (-10/Materials: 12) Y-45 Defender (-9/Materials: 10) Y-45 Defender (-9/Materials: 5) EX-DEC (-8/Scraptown: 5) Game ------ Seed HybridCloakMicroactuators Manual? 0 Play Time 00:59:48 Cumulative 153.3 hours Start 2025.05.26 @ 16:09:16 End 2025.05.26 @ 17:14:27 Sessions 1 Manual Loads 0 Difficulty Rogue Special Mode Winter2022/Polymind Game No. 226 Rogue 223 Adventurer 3 Explorer 0 Win Type - Total 1 Types 1/0/0/0/0/0/0/0/0/0 Lore% 42 Gallery% 55 Achievement% 45 Wizard Run 0 Options --------- Layout 0 ASCII 0 Keyboard 0 Movement Mouse Keybinds 0 Fullscreen 2 Font 18/SmallcapsGlow Map View 76x50 Zoom Use 0% Tactical HUD 1 Map Filters NONE Filters NONE Steam 1 RUN: af53f0ca-304e-440b-a09c-330954d6ebe7